bitfinex-derivatives/quotes_ETHF0:USTF0_20250929
["timestamp","ask_amount","ask_price","bid_price","bid_amount"]
[1759179268869,2.78563,4223.0,4222.9,3.03679964]
[1759179269971,2.3597,4223.0,4222.9,3.03679964]
[1759179270174,2.3597,4223.0,4222.9,2.19874]
[1759179270667,2.1127,4223.0,4222.9,1.7728]
[1759179270869,2.3597,4223.0,4222.9,1.7728]
[1759179271176,2.3597,4223.0,4222.9,2.19874]
[1759179272177,2.1127,4223.0,4222.9,2.19874]
[1759179272379,1.7972,4223.0,4222.9,2.19874]
[1759179272579,2.0442,4223.0,4222.9,2.19874]
[1759179272770,0.247,4223.0,4222.9,2.19874]
[1759179272971,1.7972,4223.3,4223.2,1.20251]
[1759179273173,1.7972,4223.3,4223.2,2.19871]
[1759179273372,1.7972,4223.3,4223.1,0.83991953]
[1759179273373,1.3044,4223.7,4223.6,2.19867]
[1759179273675,1.5514,4223.7,4223.6,2.19867]
[1759179273874,0.7683,4223.7,4223.6,2.19867]
[1759179274075,1.5514,4223.7,4223.6,2.19867]
[1759179274876,0.7683,4223.7,4223.6,2.19867]
[1759179275180,1.3044,4224.0,4223.9,2.19864]
[1759179275381,1.5514,4224.0,4223.9,2.19864]
[1759179275574,2.0442,4224.0,4223.9,2.19864]
[1759179275779,1.7972,4224.0,4223.9,2.19864]
[1759179276077,40.8,4224.9,4224.0,2.49313]
[1759179276274,0.247,4224.6,4224.0,2.49313]
[1759179276985,0.3155,4225.5,4224.0,2.49313]
[1759179276986,1.7972,4225.2,4225.1,1.7728]
[1759179277184,2.0442,4225.2,4225.1,1.7728]
[1759179277479,0.3155,4225.0,4224.9,0.42573]
[1759179277676,2.1127,4225.0,4224.9,0.91973]
[1759179277880,2.11482844,4225.0,4224.9,0.91973]
[1759179278786,2.36182844,4225.0,4224.9,1.69633]
[1759179280687,2.36182844,4225.0,4224.9,2.19853]
[1759179280984,2.04632844,4225.0,4224.9,2.19853]
[1759179282189,0.24912844,4225.0,4224.9,2.19853]
[1759179282481,0.00212844,4225.0,4224.9,2.19853]
[1759179282679,1.30652844,4225.0,4224.9,2.19853]
[1759179283086,1.79932844,4225.0,4224.9,2.19853]
[1759179285984,2.22505844,4225.0,4224.9,2.19853]
[1759179286487,1.79932844,4225.0,4224.9,2.19853]
[1759179287285,0.00212844,4225.0,4224.9,2.19853]
[1759179287880,0.00212844,4225.0,4224.9,7.44553]
[1759179288080,0.42564,4225.9,4224.9,7.44553]
[1759179288280,2.22291,4225.2,4225.1,1.2706]
[1759179288485,2.22291,4225.2,4225.1,0.494]
[1759179288686,2.22291,4225.2,4225.1,1.2706]
[1759179289079,2.22291,4225.2,4225.1,1.69632]
[1759179289283,2.22492555,4225.2,4225.1,1.69632]
[1759179290377,0.00201555,4225.2,4225.1,2.19852]
[1759179291879,0.42563,4226.0,4225.9,1.42184]
[1759179292183,0.5213,4226.1,4226.0,2.49293]
[1759179292582,0.246,4226.3,4226.2,2.19841]
[1759179292583,1.3044,4226.3,4226.2,2.19841]
[1759179292790,1.55301912,4226.3,4226.2,2.20070183]
[1759179292990,1.97861912,4226.3,4226.2,2.20070183]
[1759179293284,1.73261912,4226.3,4226.2,2.20070183]
[1759179293486,2.22541912,4226.3,4226.2,2.20070183]
[1759179294087,2.22541912,4226.3,4226.2,1.77509183]
[1759179294587,2.22541912,4226.3,4226.2,2.20070183]
[1759179294791,2.22541912,4226.3,4226.2,0.49629183]
[1759179295090,2.22541912,4226.3,4225.2,1.06427]
[1759179295091,2.0373,4225.5,4225.4,1.63569]
[1759179295484,2.0373,4225.5,4225.4,2.15699]
[1759179295684,1.7451,4225.5,4225.4,2.15699]
[1759179296186,2.17078,4225.5,4225.4,1.7342997]
[1759179296492,2.46298,4225.5,4225.4,0.0029997]
[1759179297592,2.46298,4225.5,4225.4,0.4286897]
[1759179297792,2.46298,4225.5,4225.4,0.9365897]
[1759179298593,2.46298,4225.5,4225.4,0.0029997]
[1759179305092,2.46298,4225.5,4225.4,0.5108997]
[1759179305797,1.7451,4226.0,4225.9,2.15694]
[1759179305998,0.90963,4226.0,4225.9,2.15694]
[1759179306698,0.00261912,4226.3,4226.2,1.45481]
[1759179307002,0.00261912,4226.3,4226.2,2.99511126]
[1759179307199,0.00261912,4226.3,4226.2,2.15691]
[1759179308591,0.48661912,4226.3,4226.2,1.7313]
[1759179308793,1.74771912,4226.3,4226.2,1.0292]
[1759179309296,1.74771912,4226.3,4226.2,1.7313]
[1759179309893,0.9941,4225.9,4225.7,0.7021]
[1759179310098,1.7451,4225.7,4225.6,1.63566]
[1759179310297,1.7451,4225.7,4225.6,2.15696]
[1759179310995,0.484,4226.0,4225.9,0.5079]
[1759179311196,0.484,4226.0,4225.9,1.7313]
[1759179311598,1.235,4226.0,4225.9,1.7313]
[1759179312197,1.23761912,4226.3,4226.2,1.0292]
[1759179312394,1.74771912,4226.3,4226.2,1.0292]
[1759179312800,1.7451,4226.0,4225.9,1.7313]
[1759179313507,1.23761912,4226.3,4226.2,2.15691]
[1759179313795,1.99371912,4226.3,4226.2,1.7313]
[1759179314395,2.41931912,4226.3,4226.2,1.7313]
[1759179314703,2.41931912,4226.3,4226.2,2.15691]
[1759179315003,2.41931912,4226.3,4226.2,1.7313]
[1759179315197,0.4999,4225.7,4225.6,1.58500126]
[1759179315395,1.6957,4225.7,4225.6,2.13357]
[1759179316300,2.12136,4225.7,4225.6,0.9611]
[1759179317100,0.246,4225.9,4225.4,0.4286797]
[1759179317101,1.67038,4225.5,4225.4,0.9124797]
[1759179317301,2.39988,4225.5,4225.4,1.6592797]
[1759179317896,2.39988,4225.5,4225.4,0.9124797]
[1759179318401,1.9742,4225.5,4225.4,2.1365797]
[1759179318598,2.39988,4225.5,4225.4,2.1365797]
[1759179318806,2.12138,4225.5,4225.4,2.1365797]
[1759179319002,1.6957,4225.5,4225.4,2.1365797]
[1759179319504,2.12138,4225.5,4225.4,2.1365797]
[1759179320099,2.12138,4225.5,4225.4,1.7108997]
[1759179320505,1.6957,4225.5,4225.4,2.1365897]
[1759179320700,0.2785,4226.0,4225.4,2.1365897]
[1759179320907,0.4999,4225.7,4225.6,1.7079]
[1759179321205,1.67038,4225.5,4225.4,0.4867997]
[1759179321402,2.39988,4225.5,4225.4,0.4867997]
[1759179321802,2.39988,4225.5,4225.4,1.6592897]
[1759179322211,0.4999,4225.5,4225.4,2.1365897]
[1759179322511,0.246,4225.5,4225.4,1.3897897]
[1759179323005,0.246,4225.5,4225.4,2.1365897]
[1759179323999,1.2294,4225.9,4225.8,0.42565]
[1759179324205,1.61911,4226.2,4226.1,2.12271]
[1759179324711,1.1935,4226.2,4226.1,2.12271]
[1759179325008,0.4665,4226.2,4226.1,2.12271]
[1759179326707,0.00261912,4226.3,4226.2,2.12271]
[1759179326916,0.727,4227.2,4227.1,0.42552]
[1759179327099,0.89205,4226.8,4226.7,0.4709]
[1759179327300,2.11225,4226.8,4226.7,1.2009]
[1759179327505,1.6867,4226.8,4226.7,1.2009]
[1759179327814,1.6867,4226.8,4226.7,1.6971]
[1759179328014,1.68944793,4226.8,4226.7,1.6971]
[1759179328711,2.11226,4226.7,4226.6,0.89647]
[1759179329010,1.6867,4226.7,4226.6,2.12267]
[1759179330613,2.11226,4226.7,4226.6,1.6971]
[1759179331110,1.6867,4226.7,4226.6,2.12267]
[1759179331305,0.4665,4226.7,4226.6,2.12267]
[1759179331705,0.00274793,4226.8,4226.7,2.12266]
[1759179332313,0.00274793,4226.8,4226.7,2.36866]
[1759179332514,0.00274793,4226.8,4226.7,3.20686126]
[1759179333116,1.6807,4226.5,4226.4,1.62651]
[1759179333302,0.9597,4226.2,4226.1,0.4709]
[1759179333508,2.11233,4226.2,4226.1,1.2009]
[1759179334104,2.11233,4226.2,4225.5,1.13370126]
[1759179334105,1.6867,4225.9,4225.8,0.89658]
[1759179334811,1.6867,4225.9,4225.8,1.62658]
[1759179335212,2.11237,4225.9,4225.8,1.62658]
[1759179335412,2.11237,4225.9,4225.8,1.2009]
[1759179336116,2.11237,4225.9,4225.8,0.4709]
[1759179338113,1.6867,4225.9,4225.8,0.4709]
[1759179339117,2.11237,4225.9,4225.8,0.4709]
[1759179339311,1.3854,4225.6,4225.5,2.03910126]
[1759179339515,1.3854,4225.6,4225.5,0.4709]
[1759179339516,2.1124,4225.6,4225.5,0.4709]
[1759179339714,2.40781,4225.5,4225.4,0.0029997]
[1759179340220,2.40781,4225.5,4225.4,0.4738997]
[1759179340720,2.40781,4225.5,4225.4,1.2038997]
[1759179341416,1.9821,4225.5,4225.4,2.1258197]
[1759179342122,2.40781,4225.5,4225.4,1.7000997]
[1759179342315,2.40781,4225.5,4225.4,0.0029997]
[1759179343116,7.40781,4225.5,4225.4,0.0029997]
[1759179345132,6.9821,4225.5,4225.4,1.7000997]
[1759179345328,2.35841,4225.5,4225.4,1.7000997]
[1759179345528,2.35841,4225.5,4225.4,2.1258197]
[1759179345529,0.4665,4225.5,4225.4,2.1258197]
[1759179345730,3.004,4225.8,4225.5,1.6759]
[1759179345731,0.4257,4225.6,4225.5,1.6759]
[1759179346033,0.8922,4225.6,4225.5,2.4059]
[1759179346235,2.1124,4225.6,4225.5,0.4709]
[1759179347731,0.42571,4225.5,4225.4,0.0029997]
[1759179347936,2.40781,4225.5,4225.4,0.0029997]
[1759179348235,2.65381,4225.5,4225.4,0.0029997]
[1759179349239,2.35841,4225.5,4225.4,2.1258197]
[1759179349440,2.65381,4225.5,4225.4,2.1258197]
[1759179349640,0.7125,4225.5,4225.4,2.1258197]
[1759179349840,1.86521,4225.5,4225.4,2.1258197]
[1759179350140,2.35841,4225.5,4225.4,2.1258197]
[1759179350340,2.35841,4225.5,4225.4,1.7000997]
[1759179350543,2.65381,4225.5,4225.4,0.0029997]
[1759179350742,2.65381,4225.5,4225.4,0.4738997]
[1759179351243,2.65381,4225.5,4225.4,0.8996197]
[1759179351435,2.65381,4225.5,4225.4,1.6296197]
[1759179352543,2.65381,4225.5,4225.4,2.1258197]
[1759179352855,1.9327,4225.5,4225.4,2.1258197]
[1759179353158,2.11241,4225.5,4225.4,2.1258197]
[1759179353443,2.35741,4225.5,4225.4,2.1258197]
[1759179353644,0.4665,4225.5,4225.4,2.1258197]
[1759179353842,0.7115,4225.5,4225.4,2.1258197]
[1759179354147,1.4114,4225.5,4225.4,2.1258197]
[1759179354348,1.8849,4225.5,4225.4,2.1258197]
[1759179355147,2.06561,4225.5,4225.4,2.1258197]
[1759179355534,2.06561,4225.5,4225.4,1.7000997]
[1759179355940,2.06561,4225.5,4225.4,2.1258197]
[1759179356447,1.6399,4225.5,4225.4,2.1258197]
[1759179357954,2.06561,4225.5,4225.4,2.1258197]
[1759179358737,1.39245,4226.1,4226.0,0.4723]
[1759179359043,1.6667,4225.6,4225.5,0.898]
[1759179359341,2.0924,4225.6,4225.5,0.4723]
[1759179359739,0.42571,4225.5,4225.4,0.0029997]
[1759179359944,2.37861,4225.5,4225.4,0.0029997]
[1759179361143,43.17861,4225.5,4225.4,0.0029997]
[1759179361750,2.37861,4225.5,4225.4,0.0029997]
[1759179362956,7.37861,4225.5,4225.4,0.0029997]
[1759179363851,1.9117,4225.5,4225.4,2.0855197]
[1759179364353,0.4933,4225.7,4225.6,0.4257]
[1759179364557,0.4933,4225.7,4225.4,0.6908997]
[1759179364558,1.1932,4225.9,4225.8,2.08248]
[1759179364757,0.7383,4225.9,4225.8,2.08248]
[1759179364962,0.91895,4226.1,4226.0,2.37996]
[1759179365148,1.86385,4226.1,4226.0,2.37996]
[1759179365658,2.33735,4226.1,4226.0,2.08246]
[1759179365859,2.09235,4226.1,4226.0,2.08246]
[1759179366058,2.33735,4226.1,4226.0,1.6568]
[1759179366261,2.33735,4226.1,4226.0,0.9689]
[1759179366555,1.9117,4226.1,4226.0,2.08246]
[1759179367155,2.33735,4226.1,4226.0,2.08246]
[1759179368559,1.9117,4226.1,4226.0,2.08246]
[1759179369059,2.33735,4226.1,4226.0,2.08246]
[1759179369259,1.9117,4226.1,4226.0,2.08246]
[1759179369651,0.9668,4226.4,4226.3,1.39452]
[1759179369853,1.9117,4226.4,4226.3,2.08242]
[1759179370156,2.33733,4226.4,4226.3,1.6568]
[1759179370352,2.33733,4226.4,4226.3,2.08243]
[1759179370668,2.09233,4226.4,4226.3,2.08243]
[1759179370850,2.33733,4226.4,4226.3,2.08243]
[1759179371255,0.91893,4226.4,4226.3,2.08243]
[1759179371463,0.9189,4226.6,4226.5,1.411]
[1759179371659,0.9189,4226.6,4226.5,2.3799]
[1759179371660,0.4933,4226.6,4226.5,2.3799]
[1759179372156,0.00274793,4226.8,4226.7,2.08239]
[1759179372352,0.00274793,4226.8,4226.7,2.91804993]
[1759179372655,0.00274793,4226.8,4226.7,2.08239]
[1759179373158,0.00274793,4226.8,4226.7,2.91764376]
[1759179374155,0.00274793,4226.8,4226.7,2.08239]
[1759179374752,0.00274793,4226.8,4226.7,2.91764376]
[1759179375155,0.00274793,4226.8,4226.7,2.08239]
[1759179375555,0.00274793,4226.8,4226.7,2.91764376]
[1759179375959,0.00274793,4226.8,4226.7,7.91764376]
[1759179376160,0.88189,4227.7,4227.6,1.3204]
[1759179376361,2.04229,4227.7,4227.6,1.5949]
[1759179376860,1.6168,4227.7,4227.6,1.5949]
[1759179377056,0.45817232,4227.7,4227.6,1.5949]
[1759179377562,1.61857232,4227.7,4227.6,1.5949]
[1759179377966,0.00177232,4227.7,4227.6,2.0204]
[1759179378456,0.45817232,4227.7,4227.6,2.0204]
[1759179379055,2.04406232,4227.7,4227.6,1.5949]
[1759179379658,2.04406232,4227.7,4227.6,0.8949]
[1759179379864,2.04406232,4227.7,4227.6,1.3204]
[1759179380061,2.04406232,4227.7,4227.6,0.8949]
[1759179380266,2.04406232,4227.7,4227.4,0.87452]
[1759179380267,2.33352,4227.5,4227.4,0.87452]
[1759179380564,2.33352,4227.5,4227.4,1.57452]
[1759179380966,2.33352,4227.5,4227.4,2.02042]
[1759179381563,2.33352,4227.5,4227.4,0.449]
[1759179382266,2.33352,4227.5,4227.4,1.149]
[1759179382868,2.33352,4227.5,4227.4,1.57452]
[1759179383168,2.33352,4227.5,4227.4,1.149]
[1759179383969,2.04235,4227.1,4227.0,1.5949]
[1759179385066,1.6168,4227.1,4227.0,1.97546]
[1759179385665,2.04235,4227.1,4227.0,1.97546]
[1759179385968,2.04235,4227.1,4227.0,0.449]
[1759179386469,2.04235,4227.1,4227.0,0.87456]
[1759179386670,2.04235,4227.1,4227.0,0.449]
[1759179386968,2.37652,4226.5,4226.4,0.42561]
[1759179387269,2.08963,4226.3,4226.2,1.6245]
[1759179387472,2.08963,4226.3,4226.2,2.05014]
[1759179388268,1.664,4226.3,4226.2,2.05014]
[1759179388862,1.664,4226.3,4226.2,0.9464]
[1759179389068,2.08963,4226.3,4226.2,0.4793]
[1759179389259,0.9625,4226.0,4225.9,0.9231]
[1759179389463,0.9625,4226.0,4225.9,1.82807]
[1759179389464,1.664,4226.0,4225.9,1.82807]
[1759179389763,1.9509,4226.0,4225.9,2.29517]
[1759179390069,1.664,4226.0,4225.9,2.29517]
[1759179390768,1.664,4226.0,4225.9,1.8695]
[1759179390769,2.08966,4226.0,4225.9,1.8695]
[1759179391267,2.37656,4226.0,4225.9,1.6245]
[1759179391468,2.0897,4225.6,4225.5,0.9464]
[1759179391668,2.0897,4225.6,4225.5,0.4793]
[1759179391866,0.2869,4225.5,4225.4,0.0029997]
[1759179392066,1.9509,4225.5,4225.4,0.0029997]
[1759179392679,2.1959,4225.5,4225.4,0.0029997]
[1759179393165,7.1959,4225.5,4225.4,0.0029997]
[1759179393367,1.664,4224.4,4224.3,2.45849961]
[1759179393570,1.664,4224.4,4224.3,2.88432961]
[1759179393770,1.1853,4224.7,4224.6,1.3722]
[1759179393965,1.664,4224.7,4224.6,2.0503]
[1759179394366,1.66584827,4224.7,4224.6,2.05225343]
[1759179395275,0.00184827,4224.7,4224.6,2.05225343]
[1759179395480,1.9509,4225.5,4225.4,1.6245]
[1759179395668,1.664,4225.5,4225.4,1.6245]
[1759179395869,2.37661,4225.5,4225.4,0.4793]
[1759179396067,0.9625,4225.2,4225.1,0.90505]
[1759179396269,1.664,4225.2,4225.1,2.05025]
[1759179396473,1.66624479,4225.2,4225.1,2.05025]
[1759179398374,1.664,4224.9,4224.8,1.1574]
[1759179398572,1.664,4224.9,4224.8,0.4793]
[1759179398773,2.08977,4224.9,4224.8,0.4793]
[1759179398977,2.08977,4224.9,4224.8,1.6245]
[1759179399176,1.664,4224.9,4224.8,1.6245]
[1759179401578,1.664,4224.9,4224.8,2.05028]
[1759179402076,2.08977,4224.9,4224.8,1.6245]
[1759179402276,1.664,4224.9,4224.8,2.05028]
[1759179405384,2.08977,4224.9,4224.8,2.05028]
[1759179406786,1.664,4224.9,4224.8,2.05028]
[1759179407380,2.08977,4224.9,4224.8,2.05028]
[1759179408994,1.664,4224.9,4224.8,2.05028]
[1759179410878,2.08977,4224.9,4224.8,2.05028]
[1759179411485,1.664,4224.9,4224.8,2.05028]
[1759179411982,2.08977,4224.9,4224.8,2.05028]
[1759179412290,2.08977,4224.9,4224.8,1.6245]
[1759179412478,2.08977,4224.9,4224.8,2.05028]
[1759179415589,1.664,4224.9,4224.8,2.05028]
[1759179417187,2.08977,4224.9,4224.8,2.05028]
[1759179417490,1.664,4224.9,4224.8,2.05028]
[1759179417682,2.08977,4224.9,4224.8,2.05028]
[1759179419985,1.664,4224.9,4224.8,2.05028]
[1759179420185,1.664,4224.9,4224.8,2.88427961]
[1759179420387,1.1853,4224.9,4224.8,2.88427961]
[1759179420588,1.1925,4225.1,4225.0,1.35446]
[1759179420793,0.00224479,4225.2,4225.1,2.03835]
[1759179421092,0.00224479,4225.2,4225.1,2.87538261]
[1759179421294,0.00224479,4225.2,4225.1,2.03835]
[1759179421688,0.00224479,4225.2,4225.1,3.29565189]
[1759179425298,0.00224479,4225.2,4225.1,2.03835]
[1759179425498,0.00224479,4225.2,4225.1,3.29565189]
[1759179425792,0.00224479,4225.2,4225.1,2.03835]
[1759179426798,0.00224479,4225.2,4225.1,3.29565189]
[1759179427198,0.00224479,4225.2,4225.1,2.03835]
[1759179427898,0.00224479,4225.2,4225.1,3.29565189]
[1759179428288,0.00224479,4225.2,4225.1,2.03835]
[1759179428599,0.00224479,4225.2,4225.1,2.28335]
[1759179430200,1.1925,4226.0,4225.9,2.03827]
[1759179430503,0.4776,4226.0,4225.9,2.03827]
[1759179431200,0.4795651,4226.0,4225.9,2.03827]
[1759179431401,0.0019651,4226.0,4225.9,2.03827]
[1759179432599,0.0019651,4226.0,4225.9,2.28227]
[1759179433505,0.42556,4227.0,4226.8,1.6126]
[1759179433801,0.42556,4227.0,4226.5,0.2724]
[1759179433802,1.61805,4227.1,4227.0,1.885]
[1759179434001,1.61805,4227.1,4227.0,1.6126]
[1759179434198,1.6515,4227.1,4227.0,2.03816]
[1759179434406,2.0800929,4227.1,4227.0,1.6126]
[1759179435109,1.6545429,4227.1,4227.0,2.03816]
[1759179435300,2.0800929,4227.1,4227.0,1.6126]
[1759179436102,2.0800929,4227.1,4227.0,2.03816]
[1759179436908,1.6545429,4227.1,4227.0,2.03816]
[1759179438003,2.0800929,4227.1,4227.0,2.03816]
[1759179439107,1.6545429,4227.1,4227.0,2.03816]
[1759179439306,2.0800929,4227.1,4227.0,2.03816]
[1759179439507,1.6545429,4227.1,4227.0,2.03816]
[1759179440311,2.0800929,4227.1,4227.0,2.03816]
[1759179440809,1.6545429,4227.1,4227.0,2.03816]
[1759179441711,2.0800929,4227.1,4227.0,2.03816]
[1759179444206,1.6545429,4227.1,4227.0,2.03816]
[1759179444406,2.0800929,4227.1,4227.0,2.03816]
[1759179446021,1.6545429,4227.1,4227.0,2.03816]
[1759179447317,2.0800929,4227.1,4227.0,2.03816]
[1759179447520,2.0800929,4227.1,4227.0,1.6126]
[1759179448420,0.2619,4227.0,4226.4,0.709]
[1759179448616,0.8999,4226.4,4226.3,0.42563]
[1759179448814,2.03632,4226.4,4226.3,1.58493]
[1759179449212,2.03632,4226.4,4226.3,0.87593]
[1759179449412,2.03632,4226.4,4226.3,1.58493]
[1759179449923,2.03632,4226.4,4226.3,0.4503]
[1759179450118,1.32553,4226.3,4226.2,0.42564]
[1759179450318,2.03633,4226.3,4226.2,0.42564]
[1759179450516,0.2619,4227.0,4226.2,2.05424]
[1759179450825,1.1819429,4227.1,4227.0,2.31496]
[1759179451519,1.6074929,4227.1,4227.0,2.31496]
[1759179451920,2.0392929,4227.1,4227.0,2.31496]
[1759179453316,0.2619,4227.0,4226.6,0.709]
[1759179453519,0.2619,4227.0,4225.8,1.0642]
[1759179453520,1.32551,4226.5,4226.4,0.4503]
[1759179453821,2.29821,4226.5,4226.4,0.4503]
[1759179455324,2.29821,4226.5,4226.4,0.87592]
[1759179455521,1.6107,4226.5,4226.4,2.05422]
[1759179455718,1.1789,4226.5,4226.4,2.05422]
[1759179455922,1.6107,4226.5,4226.4,2.05422]
[1759179456124,2.29821,4226.5,4226.4,2.05422]
[1759179456423,0.89373,4226.3,4226.2,1.28564049]
[1759179456722,2.03633,4226.3,4226.2,0.4503]
[1759179457115,2.03633,4226.3,4226.2,2.05424]
[1759179457312,2.03633,4226.3,4226.2,1.13464]
[1759179457523,1.32556,4226.0,4225.9,2.05427]
[1759179457922,1.6107,4226.0,4225.9,2.05427]
[1759179458121,2.03636,4226.0,4225.9,2.05427]
[1759179458422,2.03637,4225.9,4225.8,0.83534049]
[1759179458619,2.03638,4225.8,4225.7,0.83534049]
[1759179458823,2.03639,4225.7,4225.6,0.83534049]
[1759179459318,0.4257,4225.6,4225.5,0.42571]
[1759179459517,0.42572,4225.4,4225.3,1.70331073]
[1759179459723,0.42572,4225.4,4225.3,0.87603]
[1759179459724,2.03642,4225.4,4225.3,0.87603]
[1759179459926,1.6107,4225.4,4225.3,2.05433]
[1759179460127,2.03642,4225.4,4225.3,2.05433]
[1759179460321,1.32563,4225.3,4225.2,0.4503]
[1759179460527,1.6107,4225.2,4225.1,2.46556988]
[1759179461427,1.6107,4225.2,4225.1,1.6286]
[1759179462523,1.6107,4225.2,4225.1,0.4503]
[1759179462922,1.6107,4225.2,4225.1,1.1593]
[1759179463732,1.6107,4225.2,4225.1,0.4503]
[1759179464619,1.6107,4225.2,4224.8,0.83696988]
[1759179464620,0.42577,4224.9,4224.8,0.83696988]
[1759179464824,1.6107,4224.9,4224.8,2.89134988]
[1759179465418,1.6107,4224.9,4224.8,2.42204988]
[1759179465621,1.6107,4224.9,4224.8,2.05438]
[1759179465828,1.6107,4224.9,4224.8,2.89134988]
[1759179466021,0.4681,4224.9,4224.8,2.89134988]
[1759179466225,0.7108,4225.7,4225.5,0.4257]
[1759179466423,1.1789,4225.6,4225.5,2.0543]
[1759179466628,1.6107,4225.6,4225.5,2.0543]
[1759179466832,2.0364,4225.6,4225.5,2.0543]
[1759179467127,2.0364,4225.6,4225.2,0.244]
[1759179467329,2.03643,4225.3,4225.2,0.6943]
[1759179467631,1.6107,4224.9,4224.8,1.6286]
[1759179467831,1.6107,4224.9,4224.8,2.05438]
[1759179468031,1.1789,4224.9,4224.8,2.05438]
[1759179468420,0.4681,4224.9,4224.8,2.05438]
[1759179468932,0.7108,4225.2,4224.7,0.83696988]
[1759179468933,1.1789,4225.2,4225.1,1.34535]
[1759179469134,1.1789,4225.2,4225.1,2.05435]
[1759179470325,2.03645,4225.1,4225.0,0.4503]
[1759179470531,2.03645,4225.1,4225.0,1.6286]
[1759179470729,2.03645,4225.1,4225.0,1.58506]
[1759179470927,2.29837,4225.0,4224.9,0.4503]
[1759179471127,2.29837,4225.0,4224.9,0.87607]
[1759179471329,1.6107,4225.0,4224.9,2.05437]
[1759179471929,1.6107,4225.0,4224.7,1.26275988]
[1759179472135,2.29836,4225.0,4224.9,0.87607]
[1759179472435,2.03643,4225.3,4225.2,2.05434]
[1759179472940,2.03643,4225.3,4225.2,1.6286]
[1759179473128,2.03643,4225.3,4225.2,0.9196]
[1759179473425,1.6107,4225.3,4225.2,2.05434]
[1759179473627,1.1789,4225.3,4225.2,2.05434]
[1759179473829,2.03643,4225.3,4225.2,1.6286]
[1759179474029,2.03643,4225.3,4225.2,0.4495]
[1759179476334,1.32766,4225.1,4225.0,0.4427]
[1759179476535,1.5872,4225.1,4225.0,0.4427]
[1759179476734,1.5872,4225.1,4225.0,1.6078]
[1759179477033,2.01295,4225.1,4225.0,2.03356]
[1759179477336,2.01295,4225.1,4225.0,1.6078]
[1759179477536,2.01295,4225.1,4225.0,2.03355]
[1759179477739,1.5872,4225.1,4225.0,2.03355]
[1759179478140,2.01294,4225.1,4225.0,2.03355]
[1759179480335,2.01294,4225.1,4225.0,1.6078]
[1759179480537,2.01294,4225.1,4225.0,2.03355]
[1759179480738,2.01294,4225.1,4225.0,1.6078]
[1759179481033,2.01294,4225.1,4225.0,2.03355]
[1759179481541,2.01294,4225.1,4225.0,1.33225]
[1759179481745,2.01294,4225.1,4225.0,0.86845]
[1759179482241,1.5872,4225.1,4225.0,2.03355]
[1759179482441,1.5872,4225.1,4225.0,3.13571988]
[1759179482743,0.4669,4225.1,4225.0,3.13571988]
[1759179483139,1.1522,4225.3,4225.2,1.33223]
[1759179483334,1.57792,4225.3,4225.2,2.03353]
[1759179484038,1.32759,4225.7,4225.6,0.9065]
[1759179484238,2.01289,4225.7,4225.6,1.6078]
[1759179485344,1.5872,4225.7,4225.6,2.0335]
[1759179485541,0.89258,4225.9,4225.8,0.42568]
[1759179485738,2.01288,4225.9,4225.8,0.4427]
[1759179486845,1.32759,4225.7,4225.6,2.40665988]
[1759179487044,2.01289,4225.7,4225.6,2.40665988]
[1759179487441,2.01289,4225.7,4225.6,1.98096988]
[1759179487946,2.01289,4225.7,4225.6,1.144]
[1759179488649,2.01289,4225.7,4225.6,1.5697]
[1759179489347,2.01289,4225.7,4225.6,2.40666988]
[1759179489950,2.01289,4225.7,4225.6,2.87046988]
[1759179490244,2.01289,4225.7,4225.6,2.44476988]
[1759179491042,2.01289,4225.7,4225.6,0.83696988]
[1759179491638,2.0129,4225.6,4225.5,0.83696988]
[1759179491844,2.26721,4225.5,4225.4,0.83696988]
[1759179492444,2.01292,4225.4,4225.3,0.83696988]
[1759179492650,1.32763,4225.3,4225.2,0.83696988]
[1759179492845,1.5872,4225.3,4225.2,2.87050988]
[1759179493052,2.25693,4225.3,4225.2,2.03354]
[1759179493246,2.01293,4225.3,4225.2,2.03354]
[1759179493441,2.25693,4225.3,4225.2,2.03354]
[1759179493646,2.25693,4225.3,4225.2,1.6078]
[1759179494853,2.25693,4225.3,4225.2,1.28180753]
[1759179495052,2.25693,4225.3,4225.2,0.83910753]
[1759179495554,2.01674,4225.2,4225.1,0.83910753]
[1759179495753,1.60076,4225.0,4224.9,0.83910753]
[1759179496051,2.52566,4225.0,4224.9,0.83910753]
[1759179497656,2.01678,4224.8,4224.7,0.83910753]
[1759179497856,1.33589,4224.7,4224.6,1.26896096]
[1759179498055,2.26079,4224.7,4224.6,1.26896096]
[1759179499255,2.26079,4224.7,4224.6,0.00195343]
[1759179500850,2.01679,4224.7,4224.6,0.00195343]
[1759179501046,2.26079,4224.7,4224.6,0.42985343]
[1759179501251,2.26079,4224.7,4224.6,1.53855343]
[1759179501452,2.26079,4224.7,4224.6,0.00195343]
[1759179501856,2.01679,4224.7,4224.6,0.00195343]
[1759179502255,2.25979,4224.7,4224.6,0.00195343]
[1759179502558,2.01679,4224.7,4224.6,0.00195343]
[1759179502758,2.25979,4224.7,4224.6,0.00195343]
[1759179503959,2.01679,4224.7,4224.6,1.08985343]
[1759179504156,2.25979,4224.7,4224.6,1.53855343]
[1759179504353,2.25979,4224.7,4224.6,1.53775343]
[1759179505252,2.25979,4224.7,4224.6,1.96355343]
[1759179505453,2.25979,4224.7,4224.6,1.53775343]
[1759179506060,1.834,4224.7,4224.6,1.96355343]
[1759179506355,2.25979,4224.7,4224.6,1.53775343]
[1759179507560,2.25979,4224.7,4224.6,0.42905343]
[1759179508056,2.25979,4224.7,4224.6,0.00115343]
[1759179508653,1.834,4224.7,4224.6,0.44365343]
[1759179508857,2.25979,4224.7,4224.6,1.96545343]
[1759179509056,2.01679,4224.7,4224.6,1.96545343]